[Event "50th La Roda Open 2024"]
[Site "La Roda"]
[Date "2024.03.30"]
[Round "7.11"]
[White "Ha, Yihan"]
[Black "Gonzalez Lema, Carlos"]
[Result "1/2-1/2"]
[ECO "D35"]
[WhiteElo "1865"]
[BlackElo "2224"]
[Annotator "RC"]
[PlyCount "114"]
[EventDate "2024.03.27"]
[EventType "swiss"]
[EventCountry "ESP"]
[SourceTitle "playchess.com"]
[Source "ChessBase"]
[SourceQuality "1"]
[TimeControl "5400+30"]

1. d4 {[%emt 0:00:03]} d5 {[%emt 0:00:04]} 2. c4 {[%emt 0:00:05]} e6 {[%emt 0:00:04]} 3. Nc3 {[%emt 0:00:08]} Nf6 {[%emt 0:00:06]} 4. cxd5 {[%emt 0:00:18]} exd5 {[%emt 0:00:06]} 5. Bg5 {[%emt 0:00:06]} Be7 {[%emt 0:00:04]} 6. e3 {[%emt 0:00:11]} c6 {[%emt 0:00:07]} 7. Bd3 {[%emt 0:00:27]} Nbd7 {[%emt 0:00:11]} 8. h3 {[%emt 0:01:38]} O-O {[%emt 0:01:35]} 9. Bf4 {[%emt 0:01:59]} Re8 {[%emt 0:00:42]} 10. Nf3 {[%emt 0:01:13]} Nf8 {[%emt 0:00:05]} 11. O-O {[%emt 0:01:06]} Ne6 {[%emt 0:00:17]} 12. Bg3 {[%emt 0:06:15]} g6 {[%emt 0:00:05]} 13. Rb1 {[%emt 0:06:15]} a5 {[%emt 0:00:04]} 14. a3 {[%emt 0:04:58]} Ng7 {[%emt 0:00:07]} 15. b4 {[%emt 0:02:47]} Bf5 {[%emt 0:01:20]} 16. Ne5 {[%emt 0:03:18]} Bxd3 {[%emt 0:07:41]} 17. Qxd3 {[%emt 0:03:25]} axb4 {[%emt 0:00:09]} 18. axb4 {[%emt 0:00:05]} Nf5 {[%emt 0:00:03]} 19. Bh2 {[%emt 0:02:03]} Ra3 {[%emt 0:00:34]} 20. Qc2 {[%emt 0:02:02]} Qa8 {[%emt 0:00:44]} 21. b5 {[%emt 0:04:26]} c5 {[%emt 0:01:24]} 22. dxc5 {[%emt 0:07:51]} d4 {[%emt 0:00:03]} 23. Ne4 {[%emt 0:02:57]} Nxe4 {[%emt 0:02:12]} 24. Qxe4 {[%emt 0:00:08]} dxe3 {[%emt 0:00:56]} 25. Qd5 {[%emt 0:06:53]} Rf8 {[%emt 0:00:02]} 26. Nc4 {[%emt 0:13:08]} Rd8 {[%emt 0:04:09]} 27. Nd6 {[%emt 0:00:46]} Bxd6 {[%emt 0:00:27]} 28. cxd6 {[%emt 0:00:11]} b6 {[%emt 0:01:52]} 29. Qxa8 {[%emt 0:01:23]} Raxa8 {[%emt 0:00:02]} 30. fxe3 {[%emt 0:00:43]} Nxd6 {[%emt 0:00:27]} 31. Rf6 {[%emt 0:06:38]} Ne4 {[%emt 0:00:59]} 32. Rxb6 {[%emt 0:01:01]} Nc3 {[%emt 0:00:31]} 33. Rf1 {[%emt 0:00:44]} f5 {[%emt 0:04:28]} 34. Be5 {[%emt 0:03:27]} Ne2+ {[%emt 0:00:42]} 35. Kh2 {[%emt 0:00:40]} Rd5 {[%emt 0:01:01]} 36. Re1 {[%emt 0:04:32]} Ra2 {[%emt 0:04:39]} 37. Ra1 {[%emt 0:01:28]} Rxa1 {[%emt 0:00:34]} 38. Bxa1 {[%emt 0:00:45]} f4 {[%emt 0:00:27]} 39. exf4 {[%emt 0:02:20]} Nxf4 {[%emt 0:00:12]} 40. Rb8+ {[%emt 0:02:55]} Kf7 {[%emt 0:00:04]} 41. b6 {[%emt 0:01:14]} Ne6 {[%emt 0:00:04]} 42. b7 {[%emt 0:00:41]} Rb5 {[%emt 0:00:01]} 43. Be5 {[%emt 0:02:48]} Nc5 {[%emt 0:00:22]} 44. Rh8 {[%emt 0:01:01]} Nxb7 {[%emt 0:00:07]} 45. Rxh7+ {[%emt 0:00:08]} Ke6 {[%emt 0:00:05]} 46. Bd4 {[%emt 0:01:45]} Nd6 {[%emt 0:00:06]} 47. Rg7 {[%emt 0:00:39]} Rg5 {[%emt 0:00:43]} 48. Be3 {[%emt 0:00:41]} Nf5 {[%emt 0:00:06]} 49. Bxg5 {[%emt 0:00:12]} Nxg7 {[%emt 0:00:02]} 50. g4 {[%emt 0:00:13]} Ke5 {[%emt 0:00:06]} 51. Kg3 {[%emt 0:00:17]} Ke4 {[%emt 0:00:01]} 52. h4 {[%emt 0:00:31]} Ne6 {[%emt 0:00:22]} 53. Bf6 {[%emt 0:00:11]} Nf8 {[%emt 0:00:04]} 54. h5 {[%emt 0:01:06]} gxh5 {[%emt 0:00:01]} 55. gxh5 {[%emt 0:00:08]} Kf5 {[%emt 0:00:02]} 56. h6 {[%emt 0:00:07]} Kxf6 {[%emt 0:00:03]} 57. h7 {[%emt 0:00:05]} Nxh7 {[%emt 0:00:03]} 1/2-1/2

[Event "50th La Roda Open 2024"]
[Site "La Roda"]
[Date "2024.03.30"]
[Round "7.12"]
[White "Peralta, Fernando"]
[Black "Ponce Navalon, Jose"]
[Result "1-0"]
[ECO "A21"]
[WhiteElo "2580"]
[BlackElo "2141"]
[Annotator "TA"]
[PlyCount "49"]
[EventDate "2024.03.27"]
[EventType "swiss"]
[EventCountry "ESP"]
[SourceTitle "playchess.com"]
[Source "ChessBase"]
[SourceQuality "1"]
[TimeControl "5400+30"]

{[%evp 9,49,64,72,67,68,29,64,47,48,0,0,0,0,0,36,28,42,30,42,35,235,0,0,0,39,37,625,168,158,158,145,63,50,45,254,251,254,204,237,251,29996,-926]} 1. d4 {[%emt 0:00:10]} d6 {[%emt 0:00:29]} 2. Nf3 {[%emt 0:00:08]} Bg4 {[%emt 0:00:19]} 3. c4 {[%emt 0:00:24]} e5 {[%emt 0:00:49]} 4. Nc3 {[%emt 0:08:13]} Bxf3 {[%emt 0:04:31]} 5. exf3 {[%emt 0:00:11]} exd4 {[%emt 0:00:06]} 6. Qxd4 {[%emt 0:00:07]} Nc6 {[%emt 0:00:02]} 7. Qd1 {[%emt 0:08:27]} Qd7 {[%emt 0:03:22]} 8. g3 {[%emt 0:06:02] White is slightly better.} O-O-O {[%emt 0:11:03]} 9. Bg2 {[%emt 0:00:17]} (9. Nd5 $14) 9... Qe6+ $11 {[%emt 0:00:25]} 10. Be3 {[%emt 0:00:08]} Qxc4 {[%emt 0:03:01]} 11. Bf1 {[%emt 0:08:56]} Qe6 {[%emt 0:00:46] Hoping for ...d5.} 12. Nd5 {[%emt 0:00:09][%mdl 1024] White has compensation.} Nge7 {[%emt 0:17:16]} 13. Bc4 {[%emt 0:00:36][%cal Od5b6] Threatens to win with Nb6+!} Kb8 {[%emt 0:00:49]} 14. O-O {[%emt 0:02:25]} Na5 $2 {[%emt 0:02:34]} ({Black should play} 14... Qd7 $14) 15. b3 $2 {[%emt 0:13:13]} (15. Re1 $6 Qd7 16. Bf1 Nac6 $16) (15. Bxa7+ $1 $18 Kxa7 16. Qa4) 15... Nxc4 {[%emt 0:00:33]} 16. bxc4 {[%emt 0:00:04]} Qd7 {[%emt 0:10:52]} 17. Rb1 {[%emt 0:02:18][%cal Ba1b1,Bb1b2,Bb2b3][%mdl 32]} Nf5 $2 {[%emt 0:01:03][%mdl 8192]} (17... c5 $14) 18. Qb3 $2 {[%emt 0:10:24]} (18. Bxa7+ Kxa7 19. Rb5) 18... c5 $18 {[%emt 0:00:49]} (18... c6 $2 19. Bxa7+ Kxa7 20. Qa4+ Kb8 21. Nb6 $18) 19. Rb2 {[%emt 0:01:15] Rfb1 would kill now. White is more active.} Qc6 {[%emt 0:02:11] [#]} 20. Rfb1 $40 {[%emt 0:14:56][%mdl 128] White is up to no good.} (20. Re1 $1 $16) 20... Rd7 $14 {[%emt 0:00:40]} 21. Qa3 {[%emt 0:00:05] Rb5 is the strong threat.} Ne7 $2 {[%emt 0:02:47] [#]} (21... Be7 $14) 22. Nb6 $1 $18 {[%emt 0:12:45][%mdl 512]} Rc7 {[%emt 0:01:59][%cal Oc6f3] [#]} (22... axb6 23. Rxb6 $18) (22... Rd8 23. Rb3) 23. Bf4 $1 {[%emt 0:02:07]} h6 {[%emt 0:06:45]} (23... axb6 $2 24. Rxb6 $18) (23... g5 24. Bxg5) 24. Rb3 {[%emt 0:02:14][%cal Oa3a7] Intending Qxa7+! and mate.} ({Weaker is} 24. Na4 Ng6 $14) 24... g5 $2 {[%emt 0:00:34] [#]} ({Much worse is} 24... axb6 25. Rxb6) (24... Nc8 $18 25. Nxc8 Rxc8 26. Rxb7+ Qxb7 27. Rxb7+ Kxb7) 25. Qxa7+ $3 {[%emt 0:07:26][%mdl 33280] Weighted Error Value: White=0.59/Black=0.93.  Loses game:     	---       	Black=3      Missed win:     	White=1     	---        Mistake:       	White=3     	Black=1      Inaccurate:     	White=1     	Black=3      OK:         	White=6     	Black=4      Best:        	---       	Black=3      Brilliant:      	White=2     	---       . Loss on time!?} 1-0

[Event "50th La Roda Open 2024"]
[Site "La Roda"]
[Date "2024.03.30"]
[Round "7.13"]
[White "Rodriguez Avila, Alvaro"]
[Black "Martinez Reyes, Pedro Ramon"]
[Result "0-1"]
[ECO "C10"]
[WhiteElo "2142"]
[BlackElo "2332"]
[Annotator "RC"]
[PlyCount "66"]
[EventDate "2024.03.27"]
[EventType "swiss"]
[EventCountry "ESP"]
[SourceTitle "playchess.com"]
[Source "ChessBase"]
[SourceQuality "1"]
[TimeControl "5400+30"]

1. e4 {[%emt 0:00:02]} e6 {[%emt 0:05:22]} 2. d4 {[%emt 0:00:12]} d5 {[%emt 0:00:05]} 3. Nc3 {[%emt 0:00:09]} dxe4 {[%emt 0:00:10]} 4. Nxe4 {[%emt 0:00:09]} Nd7 {[%emt 0:00:03]} 5. Nf3 {[%emt 0:02:47]} Ngf6 {[%emt 0:00:06]} 6. Nxf6+ {[%emt 0:00:18]} Nxf6 {[%emt 0:00:06]} 7. Be3 {[%emt 0:00:13]} Bd6 {[%emt 0:03:28]} 8. Bd3 {[%emt 0:00:17]} b6 {[%emt 0:01:58]} 9. Qe2 {[%emt 0:02:42]} Bb7 {[%emt 0:00:40]} 10. O-O-O {[%emt 0:01:28]} O-O {[%emt 0:00:21]} 11. Kb1 {[%emt 0:00:35]} c5 {[%emt 0:06:13]} 12. h4 {[%emt 0:07:03]} Rc8 {[%emt 0:04:35]} 13. h5 {[%emt 0:03:43]} h6 {[%emt 0:02:07]} 14. dxc5 {[%emt 0:09:17]} bxc5 {[%emt 0:01:08]} 15. Nd2 {[%emt 0:00:23]} Qc7 {[%emt 0:05:26]} 16. Nc4 {[%emt 0:01:13]} Bf4 {[%emt 0:00:07]} 17. Rhg1 {[%emt 0:17:36]} Bxe3 {[%emt 0:07:29]} 18. fxe3 {[%emt 0:51:23]} Qg3 {[%emt 0:01:34]} 19. e4 {[%emt 0:00:00]} Rcd8 {[%emt 0:08:58]} 20. Rdf1 {[%emt 0:00:00]} Rd4 {[%emt 0:01:26]} 21. Nd2 {[%emt 0:00:00]} Rfd8 {[%emt 0:03:08]} 22. Nb3 {[%emt 0:00:00]} Rb4 {[%emt 0:13:01]} 23. Nxc5 {[%emt 0:00:00]} Qe5 {[%emt 0:00:37]} 24. c3 {[%emt 0:00:00]} Qxc3 {[%emt 0:01:43]} 25. Rc1 {[%emt 0:00:00]} Qe5 {[%emt 0:01:09]} 26. g4 {[%emt 0:00:00]} Nd7 {[%emt 0:05:31]} 27. Qd2 {[%emt 0:00:00]} Qd4 {[%emt 0:03:56]} 28. Nxb7 {[%emt 0:00:00]} Rxb7 {[%emt 0:01:02]} 29. Qc2 {[%emt 0:00:00]} Nc5 {[%emt 0:03:09]} 30. Be2 {[%emt 0:00:00]} Na4 {[%emt 0:00:18]} 31. b3 {[%emt 0:00:00]} Rc7 {[%emt 0:00:12]} 32. Rcd1 {[%emt 0:00:00]} Rxc2 {[%emt 0:00:57]} 33. Rxd4 {[%emt 0:00:00]} Rb2+ {[%emt 0:00:05]} 0-1

[Event "50th La Roda Open 2024"]
[Site "La Roda"]
[Date "2024.03.30"]
[Round "7.14"]
[White "Buendia Pinar, Alvaro"]
[Black "Lotero, Camilo"]
[Result "1-0"]
[ECO "E52"]
[WhiteElo "2331"]
[BlackElo "2135"]
[Annotator "RC"]
[PlyCount "91"]
[EventDate "2024.03.27"]
[EventType "swiss"]
[EventCountry "ESP"]
[SourceTitle "playchess.com"]
[Source "ChessBase"]
[SourceQuality "1"]
[TimeControl "5400+30"]

1. d4 {[%emt 0:00:33]} Nf6 {[%emt 0:00:13]} 2. Nf3 {[%emt 0:00:34]} e6 {[%emt 0:01:34]} 3. c4 {[%emt 0:00:38]} b6 {[%emt 0:01:29]} 4. Nc3 {[%emt 0:01:12]} Bb7 {[%emt 0:01:43]} 5. e3 {[%emt 0:01:58]} Bb4 {[%emt 0:00:57]} 6. Bd3 {[%emt 0:02:06]} O-O {[%emt 0:01:06]} 7. O-O {[%emt 0:02:23]} d5 {[%emt 0:02:43]} 8. cxd5 {[%emt 0:00:33]} exd5 {[%emt 0:00:23]} 9. Qc2 {[%emt 0:00:17]} c5 {[%emt 0:08:51]} 10. a3 {[%emt 0:06:12]} Ba5 {[%emt 0:02:40]} 11. Rb1 {[%emt 0:06:06]} Qe7 {[%emt 0:05:36]} 12. Bd2 {[%emt 0:10:25]} Nc6 {[%emt 0:01:46]} 13. Rfe1 {[%emt 0:01:02]} c4 {[%emt 0:05:02]} 14. Bf1 {[%emt 0:00:07]} Bxc3 {[%emt 0:00:39]} 15. Bxc3 {[%emt 0:00:09]} Ne4 {[%emt 0:00:10]} 16. Nd2 {[%emt 0:01:01]} Nxc3 {[%emt 0:03:06]} 17. Qxc3 {[%emt 0:01:32]} b5 {[%emt 0:00:35]} 18. e4 {[%emt 0:03:48]} dxe4 {[%emt 0:02:09]} 19. Nxe4 {[%emt 0:00:14]} Rad8 {[%emt 0:02:12]} 20. Rbd1 {[%emt 0:03:17]} Ba8 {[%emt 0:02:15]} 21. d5 {[%emt 0:01:28]} Nb8 {[%emt 0:00:52]} 22. d6 {[%emt 0:02:15]} Qh4 {[%emt 0:06:12]} 23. Ng3 {[%emt 0:01:33]} Nd7 {[%emt 0:16:19]} 24. Qa5 {[%emt 0:05:25]} Nc5 {[%emt 0:06:22]} 25. Qxb5 {[%emt 0:01:08]} Nd3 {[%emt 0:00:16]} 26. Bxd3 {[%emt 0:00:24]} cxd3 {[%emt 0:00:04]} 27. Qxd3 {[%emt 0:00:53]} f5 {[%emt 0:00:19]} 28. Qd4 {[%emt 0:01:36]} f4 {[%emt 0:00:11]} 29. Re7 {[%emt 0:00:19]} Qg5 {[%emt 0:00:30]} 30. Ne4 {[%emt 0:05:32]} Qg6 {[%emt 0:01:07]} 31. f3 {[%emt 0:00:41]} h5 {[%emt 0:01:00]} 32. Qc4+ {[%emt 0:01:22]} Kh7 {[%emt 0:01:37]} 33. Qe6 {[%emt 0:01:48]} Bxe4 {[%emt 0:01:35]} 34. Qxe4 {[%emt 0:00:05]} Qxe4 {[%emt 0:00:07]} 35. Rxe4 {[%emt 0:00:04]} Rf6 {[%emt 0:00:17]} 36. d7 {[%emt 0:00:16]} Rf7 {[%emt 0:00:12]} 37. Red4 {[%emt 0:00:06]} a5 {[%emt 0:00:41]} 38. Rd5 {[%emt 0:00:45]} Kh6 {[%emt 0:00:30]} 39. b4 {[%emt 0:00:45]} axb4 {[%emt 0:00:06]} 40. axb4 {[%emt 0:00:03]} g6 {[%emt 0:00:44]} 41. b5 {[%emt 0:00:20]} Rf6 {[%emt 0:00:13]} 42. Rd6 {[%emt 0:00:05]} Rf5 {[%emt 0:00:28]} 43. R1d5 {[%emt 0:00:04]} Rff8 {[%emt 0:00:12]} 44. b6 {[%emt 0:00:23]} Rb8 {[%emt 0:00:13]} 45. d8=Q {[%emt 0:00:41]} Rfxd8 {[%emt 0:00:10]} 46. Rxd8 {[%emt 0:00:04]} 1-0

[Event "50th La Roda Open 2024"]
[Site "La Roda"]
[Date "2024.03.30"]
[Round "7.15"]
[White "Gomez Falagan, Daniel"]
[Black "Hurtado, Felipe"]
[Result "0-1"]
[ECO "E44"]
[WhiteElo "2319"]
[BlackElo "2087"]
[Annotator "RC"]
[PlyCount "62"]
[EventDate "2024.03.27"]
[EventType "swiss"]
[EventCountry "ESP"]
[SourceTitle "playchess.com"]
[Source "ChessBase"]
[SourceQuality "1"]
[TimeControl "5400+30"]

1. d4 {[%emt 0:00:01]} Nf6 {[%emt 0:00:07]} 2. c4 {[%emt 0:00:03]} e6 {[%emt 0:00:05]} 3. Nc3 {[%emt 0:00:03]} Bb4 {[%emt 0:00:05]} 4. e3 {[%emt 0:00:03]} b6 {[%emt 0:00:08]} 5. Nge2 {[%emt 0:00:04]} Ne4 {[%emt 0:00:09]} 6. Qc2 {[%emt 0:00:05]} Bb7 {[%emt 0:00:08]} 7. a3 {[%emt 0:00:28]} Bxc3+ {[%emt 0:00:06]} 8. Nxc3 {[%emt 0:00:05]} Nxc3 {[%emt 0:00:08]} 9. Qxc3 {[%emt 0:00:03]} d6 {[%emt 0:00:15]} 10. b3 {[%emt 0:01:04]} Qh4 {[%emt 0:00:10]} 11. d5 {[%emt 0:02:18]} Nd7 {[%emt 0:03:44]} 12. dxe6 {[%emt 0:08:06]} fxe6 {[%emt 0:00:14]} 13. Qd4 {[%emt 0:00:08]} Qe7 {[%emt 0:04:40]} 14. Bb2 {[%emt 0:07:56]} e5 {[%emt 0:01:27]} 15. Qg4 {[%emt 0:00:49]} O-O-O {[%emt 0:12:04]} 16. O-O-O {[%emt 0:26:01]} h5 {[%emt 0:06:19]} 17. Qh3 {[%emt 0:00:36]} Rdf8 {[%emt 0:04:31]} 18. f3 {[%emt 0:01:33]} g5 {[%emt 0:02:17]} 19. Kb1 {[%emt 0:00:04]} Kb8 {[%emt 0:12:19]} 20. Be2 {[%emt 0:04:14]} Nf6 {[%emt 0:04:05]} 21. Qg3 {[%emt 0:03:18]} h4 {[%emt 0:01:35]} 22. Qf2 {[%emt 0:04:15]} h3 {[%emt 0:04:17]} 23. gxh3 {[%emt 0:14:09]} Rxh3 {[%emt 0:00:19]} 24. Rhg1 {[%emt 0:00:13]} Qh7+ {[%emt 0:02:12]} 25. Bd3 {[%emt 0:00:23]} Qh6 {[%emt 0:00:20]} 26. c5 {[%emt 0:02:38]} bxc5 {[%emt 0:03:43]} 27. e4 {[%emt 0:05:16]} Nxe4 {[%emt 0:02:18]} 28. Qe2 {[%emt 0:00:57]} Rxh2 {[%emt 0:00:21]} 29. Qe1 {[%emt 0:01:08]} Nf2 {[%emt 0:00:33]} 30. Rd2 {[%emt 0:00:46]} Nxd3 {[%emt 0:00:10]} 31. Rxd3 {[%emt 0:00:04]} Qg6 {[%emt 0:00:34]} 0-1

[Event "50th La Roda Open 2024"]
[Site "La Roda"]
[Date "2024.03.30"]
[Round "7.16"]
[White "Ramiro Ovejero, Juan Luis"]
[Black "Haering Hijon, Javier"]
[Result "1-0"]
[ECO "A47"]
[WhiteElo "2316"]
[BlackElo "2045"]
[Annotator "RC"]
[PlyCount "57"]
[EventDate "2024.03.27"]
[EventType "swiss"]
[EventCountry "ESP"]
[SourceTitle "playchess.com"]
[Source "ChessBase"]
[SourceQuality "1"]
[TimeControl "5400+30"]

1. d4 {[%emt 0:00:03]} Nf6 {[%emt 0:00:07]} 2. Nf3 {[%emt 0:00:05]} e6 {[%emt 0:00:08]} 3. Bg5 {[%emt 0:00:05]} b6 {[%emt 0:00:41]} 4. e3 {[%emt 0:01:49]} Bb7 {[%emt 0:00:05]} 5. Nbd2 {[%emt 0:00:04]} c5 {[%emt 0:00:20]} 6. Bd3 {[%emt 0:00:22]} Be7 {[%emt 0:00:14]} 7. Qe2 {[%emt 0:00:42]} Nc6 {[%emt 0:01:20]} 8. c3 {[%emt 0:00:13]} cxd4 {[%emt 0:00:05]} 9. exd4 {[%emt 0:00:07]} O-O {[%emt 0:00:25]} 10. Bxf6 {[%emt 0:00:59]} Bxf6 {[%emt 0:00:00]} 11. h4 {[%emt 0:00:30]} g6 {[%emt 0:13:41]} 12. O-O-O {[%emt 0:02:56]} Ne7 {[%emt 0:05:31]} 13. Kb1 {[%emt 0:01:02]} Nd5 {[%emt 0:02:29]} 14. g3 {[%emt 0:00:20]} d6 {[%emt 0:03:28]} 15. h5 {[%emt 0:01:24]} e5 {[%emt 0:02:26]} 16. hxg6 {[%emt 0:01:59]} hxg6 {[%emt 0:00:29]} 17. dxe5 {[%emt 0:05:14]} dxe5 {[%emt 0:01:03]} 18. Be4 {[%emt 0:32:01]} Qc7 {[%emt 0:12:52]} 19. c4 {[%emt 0:01:45]} Nb4 {[%emt 0:01:49]} 20. Bxb7 {[%emt 0:01:00]} Qxb7 {[%emt 0:00:01]} 21. Nxe5 {[%emt 0:05:01]} Rfe8 {[%emt 0:02:17]} 22. f4 {[%emt 0:00:11]} Nc6 {[%emt 0:08:58]} 23. Ndf3 {[%emt 0:02:06]} Qc7 {[%emt 0:03:31]} 24. Rde1 {[%emt 0:07:40]} Kg7 {[%emt 0:04:26]} 25. Qe4 {[%emt 0:06:54]} Re6 {[%emt 0:05:50]} 26. Nd4 {[%emt 0:01:22]} Rae8 {[%emt 0:04:10]} 27. Ndxc6 {[%emt 0:01:49]} Rxc6 {[%emt 0:03:44]} 28. Qxc6 {[%emt 0:00:15]} Bxe5 {[%emt 0:00:05]} 29. Qxe8 {[%emt 0:00:14]} 1-0

[Event "50th La Roda Open 2024"]
[Site "La Roda"]
[Date "2024.03.31"]
[Round "8.1"]
[White "Aravindh, Chithambaram VR."]
[Black "Xu, Xiangyu"]
[Result "1/2-1/2"]
[ECO "E51"]
[WhiteElo "2662"]
[BlackElo "2623"]
[Annotator "TA"]
[PlyCount "21"]
[EventDate "2024.03.27"]
[EventType "swiss"]
[EventCountry "ESP"]
[SourceTitle "playchess.com"]
[Source "ChessBase"]
[SourceQuality "1"]
[TimeControl "5400+30"]

{[%evp 11,21,0,13,0,0,-1,-5,-7,8,6,10,21]} 1. d4 {[%emt 0:00:06]} Nf6 {[%emt 0:00:12]} 2. c4 {[%emt 0:00:08]} e6 {[%emt 0:00:08]} 3. Nc3 {[%emt 0:00:16]} Bb4 {[%emt 0:00:10]} 4. e3 {[%emt 0:00:10]} O-O {[%emt 0:00:10]} 5. Bd2 {[%emt 0:00:09]} d5 {[%emt 0:00:44]} 6. Nf3 {[%emt 0:00:17]} Nbd7 {[%emt 0:00:15] The position is equal.} 7. Rc1 {[%emt 0:02:15]} Be7 {[%emt 0:00:13]} 8. Bd3 {[%emt 0:02:03]} dxc4 {[%emt 0:00:17]} 9. Bxc4 {[%emt 0:00:06]} c5 {[%emt 0:00:39]} 10. O-O {[%emt 0:00:38]} a6 {[%emt 0:00:07]} 11. a4 {[%emt 0:07:16] A rather calm draw.   Weighted Error Value: White=0.05 (flawless) /Black=0.06 (flawless) .  OK:         	White=2     	Black=1} 1/2-1/2

[Event "50th La Roda Open 2024"]
[Site "La Roda"]
[Date "2024.03.31"]
[Round "8.2"]
[White "Albornoz Cabrera, Carlos Daniel"]
[Black "Sonis, Francesco"]
[Result "1-0"]
[ECO "C97"]
[WhiteElo "2603"]
[BlackElo "2562"]
[Annotator "RC"]
[PlyCount "145"]
[EventDate "2024.03.27"]
[EventType "swiss"]
[EventCountry "ESP"]
[SourceTitle "playchess.com"]
[Source "ChessBase"]
[SourceQuality "1"]
[TimeControl "5400+30"]

1. e4 {[%emt 0:00:02]} e5 {[%emt 0:00:19]} 2. Nf3 {[%emt 0:00:05]} Nc6 {[%emt 0:00:15]} 3. Bb5 {[%emt 0:00:05]} a6 {[%emt 0:00:08]} 4. Ba4 {[%emt 0:00:05]} Nf6 {[%emt 0:00:04]} 5. O-O {[%emt 0:00:07]} Be7 {[%emt 0:00:45]} 6. Re1 {[%emt 0:00:07]} b5 {[%emt 0:00:15]} 7. Bb3 {[%emt 0:00:04]} d6 {[%emt 0:00:02]} 8. c3 {[%emt 1:33:55]} O-O {[%emt 0:00:04]} 9. h3 {[%emt 0:00:00]} Na5 {[%emt 0:02:48]} 10. Bc2 {[%emt 0:00:00]} c5 {[%emt 0:00:02]} 11. d4 {[%emt 0:00:00]} Qc7 {[%emt 0:00:12]} 12. Nbd2 {[%emt 0:00:00]} Bd7 {[%emt 0:08:50]} 13. d5 {[%emt 0:00:00]} c4 {[%emt 0:00:03]} 14. Nf1 {[%emt 0:00:00]} Nb7 {[%emt 0:00:10]} 15. g4 {[%emt 0:00:00]} h5 {[%emt 0:02:51]} 16. gxh5 {[%emt 0:00:00]} Bxh3 {[%emt 0:05:35]} 17. N3h2 {[%emt 0:00:00]} g6 {[%emt 0:49:53]} 18. Ng3 {[%emt 0:00:00]} Kg7 {[%emt 0:01:22]} 19. Qf3 {[%emt 0:00:00]} Rh8 {[%emt 0:03:35]} 20. h6+ {[%emt 0:00:00]} Kf8 {[%emt 0:00:03]} 21. a4 {[%emt 0:00:00]} Bd7 {[%emt 0:02:20]} 22. axb5 {[%emt 0:00:00]} Bxb5 {[%emt 0:00:03]} 23. Ba4 {[%emt 0:00:00]} Bd7 {[%emt 0:03:36]} 24. Qe2 {[%emt 0:00:00]} Rc8 {[%emt 0:00:11]} 25. f4 {[%emt 0:00:00]} Nc5 {[%emt 0:04:52]} 26. Bc2 {[%emt 0:00:00]} Bb5 {[%emt 0:05:23]} 27. fxe5 {[%emt 0:00:00]} dxe5 {[%emt 0:00:03]} 28. Be3 {[%emt 0:00:00]} Ncd7 {[%emt 0:01:28]} 29. Rf1 {[%emt 0:00:00]} Bc5 {[%emt 0:00:20]} 30. Rf2 {[%emt 0:00:00]} Qb6 {[%emt 0:00:50]} 31. Bxc5+ {[%emt 0:00:00]} Qxc5 {[%emt 0:00:03]} 32. Raf1 {[%emt 0:00:00]} Rxh6 {[%emt 0:01:07]} 33. Kg2 {[%emt 0:00:00]} Rxh2+ {[%emt 0:02:15]} 34. Kxh2 {[%emt 0:00:00]} Ke7 {[%emt 0:00:12]} 35. Kg2 {[%emt 0:00:00]} Rh8 {[%emt 0:00:13]} 36. Bd1 {[%emt 0:00:00]} Rh7 {[%emt 0:01:32]} 37. Qd2 {[%emt 0:00:00]} Ng8 {[%emt 0:01:14]} 38. Qg5+ {[%emt 0:00:15]} Ke8 {[%emt 0:00:03]} 39. Bg4 {[%emt 0:01:44]} Qe7 {[%emt 0:00:32]} 40. Qxe7+ {[%emt 0:03:25]} Kxe7 {[%emt 0:00:10]} 41. Bxd7 {[%emt 0:02:39]} Bxd7 {[%emt 0:00:07]} 42. Rh1 {[%emt 0:00:20]} Rxh1 {[%emt 0:00:04]} 43. Kxh1 {[%emt 0:00:29]} Nf6 {[%emt 0:01:58]} 44. Rh2 {[%emt 0:01:51]} Ne8 {[%emt 0:00:03]} 45. Kg2 {[%emt 0:00:26]} Kf8 {[%emt 0:01:37]} 46. Kf3 {[%emt 0:01:26]} Kg7 {[%emt 0:00:14]} 47. Rg2 {[%emt 0:01:49]} Kf8 {[%emt 0:00:57]} 48. Nf1 {[%emt 0:00:29]} Kg7 {[%emt 0:00:47]} 49. Nd2 {[%emt 0:00:34]} Nd6 {[%emt 0:00:09]} 50. b3 {[%emt 0:00:25]} cxb3 {[%emt 0:00:38]} 51. Nxb3 {[%emt 0:00:02]} Bb5 {[%emt 0:00:08]} 52. Nc5 {[%emt 0:00:46]} Bc4 {[%emt 0:00:43]} 53. Rb2 {[%emt 0:01:10]} f5 {[%emt 0:00:23]} 54. Kf2 {[%emt 0:02:12]} Kf7 {[%emt 0:02:01]} 55. Rb6 {[%emt 0:00:50]} Ke7 {[%emt 0:00:11]} 56. Rc6 {[%emt 0:00:16]} fxe4 {[%emt 0:01:09]} 57. Rc7+ {[%emt 0:00:12]} Ke8 {[%emt 0:00:03]} 58. Nb7 {[%emt 0:01:11]} Nxb7 {[%emt 0:02:44]} 59. Rxc4 {[%emt 0:00:05]} Kd7 {[%emt 0:00:32]} 60. Rc6 {[%emt 0:00:12]} a5 {[%emt 0:00:31]} 61. Ke3 {[%emt 0:01:30]} Nd6 {[%emt 0:01:47]} 62. c4 {[%emt 0:00:36]} a4 {[%emt 0:00:01]} 63. c5 {[%emt 0:00:30]} Nb7 {[%emt 0:00:03]} 64. Kxe4 {[%emt 0:00:29]} a3 {[%emt 0:00:03]} 65. Kxe5 {[%emt 0:00:26]} a2 {[%emt 0:00:05]} 66. Ra6 {[%emt 0:00:03]} Nxc5 {[%emt 0:00:02]} 67. Ra7+ {[%emt 0:00:13]} Kd8 {[%emt 0:01:00]} 68. Rxa2 {[%emt 0:00:05]} Ke7 {[%emt 0:00:07]} 69. d6+ {[%emt 0:00:22]} Kd7 {[%emt 0:00:15]} 70. Kd5 {[%emt 0:00:41]} Nd3 {[%emt 0:00:18]} 71. Ra7+ {[%emt 0:00:05]} Kd8 {[%emt 0:00:05]} 72. Rg7 {[%emt 0:00:26]} Ke8 {[%emt 0:00:19]} 73. d7+ {[%emt 0:00:22]} 1-0